Cogmind - Beta 15 *** ADVENTURER MODE // 2025.07.21 @ 20:32:59 Player: bean Result: Destroyed by H-66 Slayer with Gauss Rifle Performance ------------- Evolutions (5) 2500 Regions Visited (6) 1200 Robots Destroyed (12) 60 Value Destroyed (333) 333 Prototype IDs (2) 40 Alien Tech Used (0) 0 Bonus (-132) -132 TOTAL SCORE: 4001 Bonus ------- Friendly Fire -132 Cogmind --------- Core Integrity 0/1000 Matter 6/300 Energy 99/100 System Corruption 0% Temperature Cool (0) Movement Core (50) Location -5/Factory Parts ------- > --- POWER (4) -------- (None) > --- PROPULSION (4) --- (None) > --- UTILITY (4) ------ (None) > --- WEAPON (5) ------- (None) > --- INVENTORY (5) ---- Thunder Leg Thunder Leg Compact Battery (200) Improved Trap Scanner Improved Heavy Laser Peak State ------------ > --- POWER ------------ Micro Nuclear Core Light Fission Core Fusion Compressor > --- PROPULSION ------- Aluminum Leg Aluminum Leg Improved Aluminum Leg > --- UTILITY ---------- Small Storage Unit Improved Targeting Computer Improved Hacking Suite Drone Bay > --- WEAPON ----------- Thermic Laser Proton Cannon Autogun Battle Rifle Antimatter Cannon > --- INVENTORY -------- Light Ion Engine Improved Ion Engine Improved Trap Scanner Improved Target Analyzer Small Laser Bolt Gun Long-range Missile Launcher [Rating: 53] Favorites ----------- Power Improved Ion Engine Engine Improved Ion Engine Power Core Micro Nuclear Core Propulsion Aluminum Leg Treads Armored Medium Treads Leg Aluminum Leg Flight Unit Improved Cesium-ion Thruster Utility Small Storage Unit Device Subdweller Optics Storage Small Storage Unit Processor Improved Targeting Computer Hackware Improved Hacking Suite Weapon Battle Rifle Energy Gun EM Pulse Gun Energy Cannon Proton Cannon Ballistic Gun Battle Rifle Ballistic Cannon Antimatter Cannon Launcher Long-range Missile Launcher Special Weapon CPS Tube Build | -11 -10 -10 -9 -9 -6 -5 ------- Run | Yrd Mat Sub Rec Scr Fac Fac Slots Evolved 10 | . . . . . 8 2 Power 3 | . . . . . 2 1 Propulsion 2 | . . . . . 1 1 Utility 2 | . . . . . 2 . Weapon 3 | . . . . . 3 . Parts Attached 39 | 6 . 1 1 6 20 5 Power 7 | 1 . . 1 . 5 . Engine 4 | 1 . . 1 . 2 . Core 3 | . . . . . 3 . Reactor . | . . . . . . . Propulsion 10 | 2 . . . 1 4 3 Treads 1 | . . . . . . 1 Leg 5 | 2 . . . 1 . 2 Wheel . | . . . . . . . Hover . | . . . . . . . Flight 4 | . . . . . 4 . Utility 7 | 1 . 1 . 1 4 . Device 3 | . . 1 . . 2 . Storage 1 | 1 . . . . . . Processor 2 | . . . . 1 1 . Hackware 1 | . . . . . 1 . Protection . | . . . . . . . Artifact . | . . . . . . . Weapon 15 | 2 . . . 4 7 2 Energy Gun 3 | 1 . . . . 2 . Energy Cannon 3 | . . . . . 1 2 Ballistic Gun 4 | 1 . . . 3 . . Ballistic Cannon 3 | . . . . . 3 . Launcher 1 | . . . . . 1 . Special Weapon 1 | . . . . 1 . . Impact Weapon . | . . . . . . . Slashing Weapon . | . . . . . . . Piercing Weapon . | . . . . . . . Special Melee Weapon . | . . . . . . . Unidentified Prototypes 2 | . . . . . 2 . Parts Lost 25 | . . . . . 21 4 Power 6 | . . . . . 6 . Propulsion 3 | . . . . . 2 1 Utility 4 | . . . . . 3 1 Weapon 12 | . . . . . 10 2 Highest Loss Streak 10 | . . . . . 10 2 To Critical Strikes . | . . . . . . . Average Backups 5 | 4 4 4 4 7 5 4 Power 1 | . 1 1 1 2 1 . Propulsion 1 | 2 2 2 2 1 . 1 Utility . | . . . . . 2 1 Weapon 1 | 1 1 1 1 3 1 . Tool/Special . | . . . . . . . Unused Backups 8 | . . . . 2 1 5 Power . | . . . . . . . Propulsion 5 | . . . . 2 1 2 Utility 2 | . . . . . . 2 Weapon 1 | . . . . . . 1 Tool/Special . | . . . . . . . Average Slot Usage (%) 77 | . 85 95 100 80 84 9 Engine 11 | . 14 14 14 14 9 . Core 2 | . . . . . 8 . Leg 21 | . 28 28 28 28 14 2 Device 6 | . . 9 14 5 4 1 Storage 10 | . 14 14 14 14 5 . Processor 4 | . . . . 7 6 2 Hackware 1 | . . . . . 4 . Energy Gun 4 | . 14 14 14 . 5 . Ballistic Gun 11 | . 14 14 14 10 13 . Ballistic Cannon 1 | . . . . . 4 . Peak Build Rating 53 | 6 6 8 9 13 53 26 Average Rating 16 | 4 6 7 8 8 37 9 On Entrance 7 | . 6 6 8 9 13 12 Naked Turns 179 | . . . . . . 179 Heaviest Build 54 | 14 14 16 18 18 54 9 Greatest Support 46 | 20 20 20 20 23 33 46 Greatest Overweight (x) 13 | . . . . . 13 2 Average Overweight (x) . | . . . . . 1 . Largest Inventory Capacity 8 | 8 8 8 8 8 8 5 Average Capacity 7 | 7 8 8 8 8 7 5 Most Carried 8 | 7 4 5 5 8 8 5 Average Carried 5 | 4 4 4 4 7 5 4 Final Capacity 8 | 8 8 8 8 8 5 5 Final Carried 8 | 4 4 4 5 8 1 5 Class Distribution -------------------- 65% | Mutant 12% | Derelict-Gunner 9% | Hacker-Gunner 7% | Derelict-Mutant 4% | Gunner Dominant Class ---------------- Mutant | -10/Materials Mutant | -10/Subcaves Mutant | -9/Recycling Mutant | -9/Scraptown Derelict-Gunner | -6/Factory Mutant | -5/Factory Resources | -11 -10 -10 -9 -9 -6 -5 ----------- Run | Yrd Mat Sub Rec Scr Fac Fac Matter Collected 575 | 237 . 63 19 50 194 12 Remotely . | . . . . . . . Salvage Created 315 | . . 108 59 . 125 23 Parts 20 | . . 10 1 . 8 1 Haulers Intercepted . | . . . . . . . Recyclers Shooed . | . . . . . . . Parts Field Recycled . | . . . . . . . Retrieved Matter . | . . . . . . . Parts Self-Destructed 11 | . . 11 . . . . Prevented . | . . . . . . . Kills | -11 -10 -10 -9 -9 -6 -5 ------- Run | Yrd Mat Sub Rec Scr Fac Fac Combat Hostiles Destroyed 8 | . . 3 1 . 4 . Guns 6 | . . 2 1 . 3 . Cannons 1 | . . . . . 1 . AOE 1 | . . 1 . . . . Classes Destroyed 6 | . . 3 1 . 2 . Turret 1 | . . 1 . . . . Watcher 2 | . . . . . 1 1 Swarmer 5 | . . 3 . . 2 . Sentry 2 | . . . 1 . 1 . Programmer 1 | . . . . . 1 . Federalist 1 | . . 1 . . . . Best Kill Streak 4 | . . 4 1 . 3 1 Combat Bots Only 3 | . . 3 1 . 2 . Max Kills in Single Turn 2 | . . 2 1 . 1 1 Gunslinging . | . . . . . . . Exploded 1 | . . 1 . . . . Melee . | . . . . . . . Uniques/NPCs Destroyed . | . . . . . . . Combat | -11 -10 -10 -9 -9 -6 -5 -------- Run | Yrd Mat Sub Rec Scr Fac Fac Hostile Shots Fired 614 | . . 50 4 . 358 202 Missed 183 | . . 20 2 . 95 66 Hits 431 | . . 30 2 . 263 136 Projectile 431 | . . 30 2 . 263 136 AOE 2 | . . . . . . 2 Critical Strikes 8 | . . 1 . . 3 4 Damage Taken 4644 | . . 192 25 . 2623 1804 Core 1710 | . . 43 . . 657 1010 Absorbed by Shields . | . . . . . . . Ignored by Resistances 1370 | . . 64 7 . 792 507 Core Remaining (%) 68 | 100 . . . 82 22 . Volleys Fired 34 | . . 10 3 . 15 6 Largest 5 | . . 2 2 . 5 1 Hottest 241 | . . 60 60 . 241 98 Shots Fired 79 | . . 20 6 . 47 6 Gun 55 | . . 20 6 . 29 . Cannon 23 | . . . . . 17 6 Launcher 1 | . . . . . 1 . Special . | . . . . . . . Kinetic 44 | . . 10 3 . 31 . Thermal 17 | . . . . . 12 5 Explosive 1 | . . . . . 1 . Electromagnetic 17 | . . 10 3 . 3 1 Robot Hit Streak 21 | . . 9 15 . 21 3 Robot Miss Streak 4 | . . 3 . . 4 1 Penetration Max . | . . . . . . . Secondary Targets 1 | . . 1 . . . . Max Gunslinging Chain 1 | . . 1 . . . . Shots Hit Robots 53 | . . 16 6 . 27 4 Core Hits 26 | . . 9 2 . 13 2 Critical Kills . | . . . . . . . Critical Parts Destroyed . | . . . . . . . Critical Strikes 3 | . . . . . 3 . Burn 1 | . . . . . 1 . Destroy 1 | . . . . . 1 . Blast 1 | . . . . . 1 . Melee Attacks . | . . . . . . . Impact . | . . . . . . . Slashing . | . . . . . . . Piercing . | . . . . . . . Sneak Attacks . | . . . . . . . Combat Hostiles . | . . . . . . . Follow-up Attacks . | . . . . . . . Damage Inflicted 1112 | . . 246 78 . 660 128 Guns 565 | . . 169 68 . 328 . Cannons 428 | . . . . . 300 128 Explosions 109 | . . 77 . . 32 . Melee . | . . . . . . . Ramming 10 | . . . 10 . . . Kinetic 591 | . . 96 36 . 459 . Thermal 336 | . . 77 . . 162 97 Explosive 32 | . . . . . 32 . Electromagnetic 143 | . . 73 32 . 7 31 Impact . | . . . . . . . Slashing . | . . . . . . . Piercing . | . . . . . . . Highest Corruption 1 | . . . . . 1 . Average Corruption 1 | . . . . . 1 . Corruption Purged . | . . . . . . . Corruption Blocked . | . . . . . . . Overload Shots . | . . . . . . . Overflow Damage 11 | . . . . . 11 . Projectiles 11 | . . . . . 11 . Explosions . | . . . . . . . Melee . | . . . . . . . Knockbacks 4 | . . . 1 . 3 . Impact 1 | . . . 1 . . . Kinetic 3 | . . . . . 3 . Secondary . | . . . . . . . Self-Inflicted Damage 29 | . . 4 . . 25 . Shots 2 | . . 1 . . 1 . Rammed 1 | . . . . . 1 . Targets Rammed 2 | . . . 1 . 1 . Kicked 1 | . . . 1 . . . Crushed . | . . . . . . . Highest Temperature 409 | . . 18 27 . 409 48 Average Temperature 135 | . . 14 16 . 156 21 Received Heat Transfer 564 | . . 138 9 . 279 138 Effects 6 | . . . . . 6 . Shutdowns 3 | . . . . . 3 . Energy Bleed 2 | . . . . . 2 . Damage (minor) 1 | . . . . . 1 . Siege Activations . | . . . . . . . Martial Activations . | . . . . . . . Shielding Activations . | . . . . . . . Robots Disrupted . | . . . . . . . Combat Hostiles . | . . . . . . . Robots Corrupted . | . . . . . . . Combat Hostiles . | . . . . . . . Parts Fried . | . . . . . . . Impact Corruptions . | . . . . . . . Robots Melted . | . . . . . . . Combat Hostiles . | . . . . . . . Parts Melted 1 | . . . . . 1 . Heat Transferred 775 | . . 100 . . 525 150 Parts Sabotaged . | . . . . . . . Parts Stolen . | . . . . . . . Parts Stripped . | . . . . . . . Power Chain Reactions 1 | . . 1 . . . . Alert | -11 -10 -10 -9 -9 -6 -5 ------- Run | Yrd Mat Sub Rec Scr Fac Fac Maximum Alert Level . | . . . . . . . Low Security (%) 100 | 100 100 . 100 . 100 100 Level 1 . | . . . . . . . Level 2 . | . . . . . . . Level 3 . | . . . . . . . Level 4 . | . . . . . . . Level 5 . | . . . . . . . High Security . | . . . . . . . Max Security . | . . . . . . . Peak Influence 111 | . . . 111 . 58 60 Initial 111 | . . . 111 . . . Average 10 | . . . 20 . 4 12 Influence Increases 550 | . . 290 20 . 156 84 Destroy 0b10 Robot/C 180 | . . 80 20 . 80 . Destroy 0b10 Robot/NC 10 | . . . . . 5 5 Destroy Leader 24 | . . . . . 22 2 Disable Machine 9 | . . . . . 9 . Destroy Structure 27 | . . . . . 25 2 Partial Spotted 15 | . . . . . . 15 Lose Combat Pursuer 285 | . . 210 . . 15 60 Influence Decreases 550 | . . 20 290 . 156 84 Entered New Map 159 | . . . 159 . . . Time Decay 327 | . . 20 131 . 92 84 Lost Part 64 | . . . . . 64 . Squads Dispatched 4 | . . . . . 3 1 Investigation . | . . . . . . . Extermination 2 | . . . . . 1 1 Reinforcement . | . . . . . . . Assault . | . . . . . . . Garrison 2 | . . . . . 2 . Intercept . | . . . . . . . Searches Triggered . | . . . . . . . Construction Impeded . | . . . . . . . Haulers Reinforced . | . . . . . . . Active Scanning Responses . | . . . . . . . Cargo Convoy Interrupts 1 | . . . . . 1 . Stealth | -11 -10 -10 -9 -9 -6 -5 --------- Run | Yrd Mat Sub Rec Scr Fac Fac Distress Signals . | . . . . . . . Communications Jammed . | . . . . . . . Distress Signals . | . . . . . . . Times Spotted 46 | . 2 16 1 . 18 9 Peak Tracking Total 9 | . 3 6 1 . 9 7 Tactical Retreats 5 | . . 2 . . 1 2 Traps | -11 -10 -10 -9 -9 -6 -5 ------- Run | Yrd Mat Sub Rec Scr Fac Fac Traps Triggered 3 | . . . . . 1 2 Indirectly . | . . . . . . . Trap Hack Attempts . | . . . . . . . Triggered . | . . . . . . . Disarmed . | . . . . . . . Reprogrammed . | . . . . . . . Reused . | . . . . . . . Traps Extracted . | . . . . . . . Installed . | . . . . . . . Triggered . | . . . . . . . Machines | -11 -10 -10 -9 -9 -6 -5 ---------- Run | Yrd Mat Sub Rec Scr Fac Fac Machines Disabled 1 | . . . . . 1 . Max in Single Turn 1 | . . . . . 1 . Machines Repaired . | . . . . . . . Machines Dismantled . | . . . . . . . Machines Sabotaged . | . . . . . . . Overloaded Fab Kills . | . . . . . . . Hacking | -11 -10 -10 -9 -9 -6 -5 --------- Run | Yrd Mat Sub Rec Scr Fac Fac Machines Accessed 8 | . . . 5 2 1 . Terminals 3 | . . . 2 . 1 . Fabricators . | . . . . . . . Repair Stations . | . . . . . . . Recycling Units 1 | . . . 1 . . . Scanalyzers . | . . . . . . . Garrison Access . | . . . . . . . Total Hacks 44 | . . . 30 13 1 . Successful 43 | . . . 29 13 1 . Failed 1 | . . . 1 . . . Catastrophic . | . . . . . . . Database Lockouts . | . . . . . . . Manual . | . . . . . . . Terminals 4 | . . . 3 . 1 . Fabricators . | . . . . . . . Repair Stations . | . . . . . . . Recycling Units 2 | . . . 2 . . . Scanalyzers . | . . . . . . . Garrison Access . | . . . . . . . Terminal Hacks 42 | . . . 28 13 1 . Record 39 | . . . 25 13 1 . Robot Analysis 1 | . . . 1 . . . Maintenance Status 1 | . . . 1 . . . Release Object 1 | . . . 1 . . . Fabricator Hacks . | . . . . . . . Repair Station Hacks . | . . . . . . . Recycling Unit Hacks 1 | . . . 1 . . . Report Inventory 1 | . . . 1 . . . Scanalyzer . | . . . . . . . Garrison Access Hacks . | . . . . . . . Unauthorized Hacks . | . . . . . . . Terminals . | . . . . . . . Fabricators . | . . . . . . . Repair Stations . | . . . . . . . Recycling Units . | . . . . . . . Scanalyzers . | . . . . . . . Garrison Access . | . . . . . . . Data Cores Recovered . | . . . . . . . Used . | . . . . . . . Hacking Detections 2 | . . . 1 . 1 . Full Trace Events . | . . . . . . . Feedback Events . | . . . . . . . Feedback Blocked . | . . . . . . . Robot Schematics Acquired . | . . . . . . . Robots Built . | . . . . . . . Authchips . | . . . . . . . Time . | . . . . . . . Total Robot Build Rating . | . . . . . . . Part Schematics Acquired . | . . . . . . . Parts Built . | . . . . . . . Authchips . | . . . . . . . Time . | . . . . . . . Total Part Build Rating . | . . . . . . . Parts Repaired . | . . . . . . . Time . | . . . . . . . Parts Recycled . | . . . . . . . Recycled Matter . | . . . . . . . Retrieved Matter . | . . . . . . . Retrieved Components . | . . . . . . . Parts Scanalyzed . | . . . . . . . Part Schematics Acquired . | . . . . . . . Parts Damaged . | . . . . . . . Bothacking | -11 -10 -10 -9 -9 -6 -5 ------------ Run | Yrd Mat Sub Rec Scr Fac Fac Used RIF Installer . | . . . . . . . Robots Hacked . | . . . . . . . Non-combat . | . . . . . . . Combat . | . . . . . . . Robot Hacks Applied . | . . . . . . . Relay Couplers Released . | . . . . . . . Fabnet Peak Effective % . | . . . . . . . Robots Rewired . | . . . . . . . Allies Hacked . | . . . . . . . Hacks Repelled . | . . . . . . . Allies | -11 -10 -10 -9 -9 -6 -5 -------- Run | Yrd Mat Sub Rec Scr Fac Fac Total Allies . | . . . . . . . Largest Group . | . . . . . . . Highest-Rated Group . | . . . . . . . Highest-Rated Ally . | . . . . . . . Total Orders . | . . . . . . . Ally Attacks . | . . . . . . . Total Damage . | . . . . . . . Kills . | . . . . . . . Allies Corrupted . | . . . . . . . Allies Melted . | . . . . . . . Intel | -11 -10 -10 -9 -9 -6 -5 ------- Run | Yrd Mat Sub Rec Scr Fac Fac Active Infowar (turns) 1192 | . . 56 682 454 . . Optics 1192 | . . 56 682 454 . . Robot Analysis Total 1 | . . . 1 . . . Derelict Logs Recovered . | . . . . . . . Drone Launches 4 | . . . . . 4 . Drone Recoveries 2 | . . . . . 2 . Exploration | -11 -10 -10 -9 -9 -6 -5 ------------- Run | Yrd Mat Sub Rec Scr Fac Fac Turns Passed 3629 | 75 82 77 682 1269 1038 406 Spaces Moved 2828 | 56 69 38 557 1043 472 593 Core 605 | 9 . . . . 53 543 Treads 39 | . . . . . . 39 Legs 2183 | 47 69 38 557 1043 418 11 Wheels . | . . . . . . . Hover . | . . . . . . . Flight 1 | . . . . . 1 . Fastest Speed 50 | 50 120 120 120 120 50 50 Average Speed 120 | 108 120 120 120 120 196 64 Slowest Speed 700 | 120 120 120 120 120 700 170 Overloaded Moves . | . . . . . . . Propulsion Burnouts . | . . . . . . . Robots Hopped . | . . . . . . . Potential Cave-ins . | . . . . . . . Cave-ins Triggered . | . . . . . . . Exploration Rate (%) 30 | 4 28 3 93 60 8 14 Regions Visited 6 Branch Regions 3 Pre-discovered Areas . | . . . . . . . Known Exits Taken . | . . . . . . . Unknown Exits Taken 6 | 1 1 1 1 1 1 . Scrap Searched 6 | . . . . 6 . . Spaces Dug . | . . . . . . . Terrain Destroyed 26 | . . 3 . . 22 1 Melee . | . . . . . . . Projectile 6 | . . . . . 5 1 AOE 20 | . . 3 . . 17 . Terrain Rammed . | . . . . . . . Walls Destroyed . | . . . . . . . Machines Disabled . | . . . . . . . Actions | -11 -10 -10 -9 -9 -6 -5 --------- Run | Yrd Mat Sub Rec Scr Fac Fac Total 2972 | 68 68 49 564 1063 550 610 Wait 2 | . . . 2 . . . Move 2822 | 55 68 37 556 1042 471 593 Hop . | . . . . . . . Pick Up 38 | 7 . 1 1 5 18 6 Fast Attach 12 | 3 . . . 4 2 3 Attach 31 | 3 . 1 . 1 24 2 Detach 5 | . . . . 3 2 . Swap 6 | . . . 1 1 4 . Drop 17 | . . . . 7 10 . Fire 34 | . . 10 3 . 15 6 Melee . | . . . . . . . Ram 1 | . . . . . 1 . Kick 1 | . . . 1 . . . Crush . | . . . . . . . Escape Stasis . | . . . . . . . Rewire 3 | . . . . . 3 . Trap . | . . . . . . . Miscellaneous . | . . . . . . . Route ------- -11/Scrapyard -10/Materials -10/Subcaves -9/Recycling (discovered 2 exits: [*Fac] / *Scr) -9/Scraptown -6/Factory (discovered 3 exits: *Fac x2 / [*Low]) -5/Factory History --------- Turn | Location | Event 8 | -11/Scrapyard | Discovered new exit (range 16) 76 | -11/Scrapyard | Entered Materials 77 | -10/Materials | Met a group of wandering Federalists 138 | -10/Materials | Discovered new exit (range 11) 158 | -10/Materials | Entered Subcaves 159 | -10/Subcaves | Continued accompanying wandering Federalists (5) 162 | -10/Subcaves | Ambushed by Subdwellers from Twisted Machinery 192 | -10/Subcaves | Discovered new exit (range 11) 223 | -10/Subcaves | Lost 4 allies 235 | -10/Subcaves | Entered Recycling 314 | -9/Recycling | Build established: Mutant 853 | -9/Recycling | Discovered new exit (range 8) 867 | -9/Recycling | Scanned before Scraplab entrance 889 | -9/Recycling | Entered Scraplab 901 | -9/Recycling | Discovered new exit (range 3) 917 | -9/Recycling | Entered Scraptown 1386 | -9/Scraptown | Visited Science Testing Area 1428 | -9/Scraptown | Visited UFD Registry 1452 | -9/Scraptown | Visited Bundlers 1541 | -9/Scraptown | Visited Comm Corps 1591 | -9/Scraptown | Visited Symbiants 1789 | -9/Scraptown | Discovered new exit (range 5) 2186 | -9/Scraptown | Entered Factory 2186 | -6/Factory | Evolved 8 slots: Power x2, Propulsion x1, Utility x2, Weapon x3 2419 | -6/Factory | Discovered new exit (range 12) 2507 | -6/Factory | Build established: Derelict-Gunner 2613 | -6/Factory | Discovered new exit (range 4) 2880 | -6/Factory | Discovered new exit (range 4) 2977 | -6/Factory | Build established: Hacker-Gunner 3036 | -6/Factory | Lost 4 parts (2u2w) 3038 | -6/Factory | Garrison activated, responded to threat 3134 | -6/Factory | Lost 7 parts (2p2n3w) 3191 | -6/Factory | Cargo convoy interrupted 3203 | -6/Factory | Core integrity fell below 50% 3224 | -6/Factory | Entered another Factory area 3224 | -5/Factory | Evolved 2 slots: Power x1, Propulsion x1 3242 | -5/Factory | Lost 10 parts (4p1u5w) 3490 | -5/Factory | Build established: Mutant 3511 | -5/Factory | Core integrity fell below 50% 3617 | -5/Factory | Core integrity fell below 20% 3630 | -5/Factory | Destroyed by H-66 Slayer with Gauss Rifle Last Messages --------------- Programmers report to Factory Zone 6R. Penetrated by Slug. Arm. Medium Treads destroyed. Slug penetrates Wall. Penetrated by Slug. Acquired Lrn. Proton Cannon. Slug penetrates Wall. Penetrated by Slug. Slug penetrates Wall. Critical hit (Burn: +37). Penetrated by Slug. Slug penetrates Wall. Lrn. Proton Cannon destroyed. Penetrated by Slug. Slug penetrates Wall. Penetrated by Slug. Slug penetrates Wall. Penetrated by Slug. Wall collapses. Slug penetrates Wall. Map ----- +----------------------------------------------------+ | ## # " #??????????? | | #########+##### " #??????????? | | """" # "" " ####??????????? | | """ # " ###?????????????? | | """" # ######???????????????? | | """" + #????????????????????? | | # #????????????????????? | | " """" # ########????????????????????? | | " """" # T#??????????????????????????? | | " """" # #??????????????????????????? | | " """" # ##??????????????????????????? | | # #???????????????????????????? | | ######### #???????????????????????????? | | ????????# #???????????????????????????? | | ????????# #???????????????????????????? | | ????????# #???????????????????????????? | | ????????######## #???????????????????????????? | | ???????????????# #???????????????????????????? | | ??############## ##############??????????????? | | ??# ] """"" # # #??????????????? | | ??# ""T"" # # #??????????????? | | ??# # # #??????????????? | | ??# *!! # h # #??????????????? | | ??# *!! # h; #??????????????? | | ??# !! + # # #????????????? | | ??# """"" # Y/ @ ; #????????????? | | ???????""""" # # ###????????????? | | ???????""" # # ! #??????????????? | | ?????? ####### ;#?????????????? | | ????? #?????# ##?????????????? | | ???? = [ #?????# / #??????????????? | | ???######### ###?????##############??????????????? | | ???????????##????????????????????????????????????? | | ?????????????????????????????????????????????????? | | ?????????????????????????????????????????????????? | | ?????????????????????????????????????????????????? | | ?????????????????????????????????????????????????? | | ?????????????????????????????????????????????????? | | ?????????????????????????????????????????????????? | | ?????????????????????????????????????????????????? | | ?????????????????????????????????????????????????? | | ?????????????????????????????????????????????????? | | ?????????????????????????????????????????????????? | | ?????????????????????????????????????????????????? | | ?????????????????????????????????????????????????? | | ?????????????????????????????????????????????????? | | | | | | | | | +----------------------------------------------------+ Best States ------------- Heat Dissipation 40 Energy Generation 48 Energy Capacity 440 Matter Stores 300 Matter Capacity 300 Sight Range 21 Terrain Scan Density 10 Base Temperature (-) 150 Resistance: KI 20 Resistance: TH 20 Resistance: EX 20 Resistance: EM 20 Resistance: I 20 Resistance: S 20 Resistance: P 20 Evasion (%) 55 Targeting Accuracy 6 Target Analysis 6 Recoil Reduction 1 Offensive Hacking 22 Item Schematics ----------------- None Robot Schematics ------------------ None Fabricated ------------ Nothing Repaired ---------- Nothing Alien Tech Used ----------------- None Achievements -------------- None Challenges ------------ None Game ------ Seed VoltaicFieldthrustTendrils Manual? 0 Play Time 00:39:40 Cumulative 3.7 hours Start 2025.05.17 @ 10:15:33 End 2025.07.21 @ 20:32:59 Sessions 4 Manual Loads 0 Difficulty Adventurer Special Mode None Game No. 7 Rogue 0 Adventurer 7 Explorer 0 Win Type - Total 0 Types 0/0/0/0/0/0/0/0/0/0 Lore% 6 Gallery% 12 Achievement% 10 Wizard Run 0 Options --------- Layout 1 ASCII 0 Keyboard 0 Movement Mouse Keybinds 0 Fullscreen 2 Font 24/Smallcaps Map View 50x35 Zoom Use 0% Tactical HUD 0 Map Filters NONE Filters NONE Steam 1 RUN: 477f0ee5-229c-4460-9e29-ad68738e3aa2